Workbook

Sheet Лист1
A2: "УТВЕРЖДЕНО" | F2: "УТВЕРЖДЕНО"
A3: _______________ | F3: _______________
A4: "____"___________2020г. | F4: "____"___________2020г.
B6: ООО "АБК - Пэймент"
B7: Примерное меню для пришкольных лагерей дневного пребывания
B8: для учащихся от 11 до 18 лет (осень)
B10: 1 день
B11: Наименование блюд | F11: Выход | G11: Белки | H11: Жиры | I11: Угл-ды | J11: Ккал
B12: Завтрак
A13: № 15/ СБ Москва Дели Плюс 2017 | B13: Сыр (порциями) | F13: 15 | G13: 3.95 | H13: 3.99 | J13: 51.50
A14: №173 /СБ Москва Дели Плюс 2017 | B14: Каша пшённая молочная с маслом сливочным | F14: 200/5 | G14: 8.58 | H14: 7.44 | I14: 44.36 | J14: 279.00
A15: № 378/ СБ Москва Дели Плюс 2017 | B15: Чай с молоком и сахаром | F15: 150/50/15 | G15: 1.52 | H15: 1.35 | I15: 15.90 | J15: 81.00
A16: стр 134 табл.6 /2012 Москва Дели Плюс | B16: Батон высший сорт | F16: 50 | G16: 3.75 | H16: 1.45 | I16: 25.66 | J16: 131.00
B17: Итого: | F17: 485 | G17: =SUM(G13:G16) -> 17.80 | H17: =SUM(H13:H16) -> 14.23 | I17: 85.92 | J17: 542.50
B19: Обед
A20: №63 /СБ Москва Дели Плюс 2017 | B20: Салат морковный с курагой | F20: 100 | G20: 1.70 | H20: 1.39 | I20: 16.51 | J20: 85.30
A21: №88/СБ Москва Дели Плюс 2017, №105 /СБ Москва Дели Плюс 2017 | B21: Щи из свежей капусты с картофелем, мясными фрикадельками,со сметаной | F21: 250/11/10 | G21: 4.22 | H21: 7.74 | I21: 8.34 | J21: 127.52
A22: № 259 /СБ Москва Дели Плюс 2017 | B22: Жаркое по - домашнему с говядиной | F22: 50/250 | G22: 17.52 | H22: 27.81 | I22: 26.38 | J22: 427.50
A24: 349/СБ Москва Дели Плюс 2017 | B24: Компот из сухофруктов | F24: 200 | G24: 0.66 | H24: 0.09 | I24: 32.01 | J24: 132.80
A25: стр 144 табл.6 /2012 Москва Дели Плюс | B25: Хлеб Сельский | F25: 50 | G25: 3.30 | H25: 0.60 | I25: 19.80 | J25: 99.00
A26: стр 134 табл.6 /2012 Москва Дели Плюс | B26: Хлеб Белый | F26: 50 | G26: 3.80 | H26: 0.40 | I26: 24.60 | J26: 117.50
B27: Итого: | F27: 921 | G27: =SUM(G20:G26) -> 31.20 | H27: =SUM(H20:H26) -> 38.03 | I27: =SUM(I20:I26) -> 127.64 | J27: =SUM(J20:J26) -> 989.62
B29: Полдник
A30: стр 136 табл.6 /2012 Москва Дели Плюс | B30: Печенье | F30: 50 | G30: 3.75 | H30: 4.90 | I30: 37.20 | J30: 208.50
A31: №386 СБ 2017 Москва | B31: Ряженка 2,5% | F31: 200 | G31: 5.80 | H31: 5.00 | I31: 8.20 | J31: 101.00
B32: Итого: | F32: 250 | G32: =SUM(G30:G31) -> 9.55 | H32: =SUM(H30:H31) -> 9.90 | I32: 45.40 | J32: 309.50
B34: ВСЕГО: | F34: =F17+F27+F32 -> 1656 | G34: =G17+G27+G32 -> 58.55 | H34: =H17+H27+H32 -> 62.16 | I34: 258.96 | J34: 1841.62
B37: 2 день
B38: Наименование блюд | F38: Выход | G38: Белки | H38: Жиры | I38: Угл-ды | J38: Ккал
B39: Завтрак
A40: стр 186 табл. 9 /2012 Москва Дели Плюс | B40: Фрукты (бананы, яблоки, апельсины, мандарины) | F40: 200 | G40: 1.80 | H40: 0.40 | I40: 16.20 | J40: 86.00
A41: № 14 /СБ Москва Дели Плюс 2017 | B41: Масло сливочное (порциями) | F41: 10 | G41: 0.08 | H41: 7.25 | I41: 0.13 | J41: 66.00
A42: №222 /СБ Москва Дели Плюс 2017 | B42: Пудинг из творога со сгущённым молоком | F42: 200/20 | G42: 29.53 | H42: 23.26 | I42: 74.88 | J42: 637.64
A43: № 382 /СБ Москва Дели Плюс 2017 | B43: Какао с молоком | F43: 200 | G43: 4.08 | H43: 3.54 | I43: 17.58 | J43: 118.60
A44: стр 134 табл.6 /2012 Москва Дели Плюс | B44: Батон высший сорт | F44: 50 | G44: 3.75 | H44: 1.45 | I44: 25.66 | J44: 131.00
B45: Итого: | F45: 680 | G45: =SUM(G40:G44) -> 39.24 | H45: =SUM(H40:H44) -> 35.90 | I45: 134.45 | J45: 1039.24
B47: Обед
A48: №67/СБ Москва Дели Плюс 2017 | B48: Винегрет овощной | F48: 100 | G48: 1.40 | H48: 10.04 | I48: 7.29 | J48: 125.10
A49: 101/СБ Москва Дели Плюс 2017 | B49: Суп картофельный с рисовой крупой на курином бульоне из отварного мяса птицы | F49: 250 | G49: 1.97 | H49: 2.71 | I49: 12.11 | J49: 85.75
A51: ТТК №187 от 2018 | B51: Гуляш из отварных куриных грудок | F51: 50/50 | G51: 13.90 | H51: 6.50 | I51: 4.00 | J51: 132.00
A52: №202/СБ Москва Дели Плюс 2017 | B52: Макаронные изделия отварные | F52: 180 | G52: 6.79 | H52: 0.80 | I52: 38.30 | J52: 187.56
A53: № 389 /СБ Москва Дели Плюс 2017 | B53: Нектар плодовый (разливной) | F53: 200 | G53: 1.00 | H53: 0.20 | I53: 20.20 | J53: 86.60
A54: стр 144 табл.6 /2012 Москва Дели Плюс | B54: Хлеб Сельский | F54: 50 | G54: 3.30 | H54: 0.60 | I54: 19.80 | J54: 99.00
A55: стр 134 табл.6 /2012 Москва Дели Плюс | B55: Хлеб Белый | F55: 50 | G55: 3.80 | H55: 0.40 | I55: 24.60 | J55: 117.50
B56: Итого: | F56: 930 | G56: =SUM(G48:G55) -> 32.16 | H56: =SUM(H48:H55) -> 21.25 | I56: 126.30 | J56: 833.51
B58: Полдник
A59: №424/СБ Москва Дели Плюс 2017 | B59: Булочка домашняя | F59: 50 | G59: 3.64 | H59: 6.26 | I59: 21.96 | J59: 159.00
A60: №386 СБ 2017,Москва | B60: Напиток кисломолочный ацидофильный 2,5% | F60: 200 | G60: 6.00 | H60: 2.00 | I60: 8.00 | J60: 74.00
B61: Итого: | F61: 250 | G61: =SUM(G59:G60) -> 9.64 | H61: =SUM(H59:H60) -> 8.26 | I61: 29.96 | J61: 233.00
B63: ВСЕГО: | F63: =F45+F56+F61 -> 1860 | G63: =G45+G56+G61 -> 81.04 | H63: =H45+H56+H61 -> 65.41 | I63: 290.71 | J63: 2105.75
B66: 3 день
B67: Наименование блюд | F67: Выход | G67: Белки | H67: Жиры | I67: Угл-ды | J67: Ккал
B68: Завтрак
A69: № 15/ СБ Москва Дели Плюс 2017 | B69: Сыр (порциями) | F69: 15 | G69: 3.95 | H69: 3.99 | J69: 53.00
A70: №210 /СБ Москва Дели Плюс 2017 | B70: Омлет натуральный классический с маслом сливочным | F70: 200/5 | G70: 20.23 | H70: 26.17 | I70: 3.68 | J70: 331.11
A71: №376 /СБ Москва Дели Плюс 2017 | B71: Чай с сахаром | F71: 200/15 | G71: 0.07 | H71: 0.02 | I71: 15.00 | J71: 60.00
A72: стр 134 табл.6 /2012 Москва Дели Плюс | B72: Батон высший сорт | F72: 50 | G72: 3.75 | H72: 1.45 | I72: 25.66 | J72: 131.00
B73: Итого: | F73: 485 | G73: =SUM(G69:G72) -> 28.00 | H73: =SUM(H69:H72) -> 31.63 | I73: 44.34 | J73: 575.11
B75: Обед
A76: №96,297 /СБ Москва Дели Плюс 2017 | B76: Рассольник ленинградский с фрикадельками из птицы,со сметаной | F76: 250/11/10 | G76: 3.78 | H76: 8.05 | I76: 13.22 | J76: 126.11
A77: №234 /СБ Москва Дели Плюс 2017 | B77: Биточки рыбные из минтая | F77: 100 | G77: 12.25 | H77: 6.75 | I77: 4.60 | J77: 130.00
A78: №128 /СБ Москва Дели Плюс 2017 | B78: Пюре картофельное с маслом сливочным | F78: 180/5 | G78: 3.87 | H78: 8.63 | I78: 22.56 | J78: 191.40
A79: №128 /СБ Москва Дели Плюс 2017 | B79: Икра кабачковая (доп.гарнир) | F79: 50 | G79: 0.45 | H79: 2.35 | I79: 2.96 | J79: 34.80
A80: 348/СБ Москва Дели Плюс 2017 | B80: Компот из кураги | F80: 200 | G80: 0.78 | H80: 0.05 | I80: 27.64 | J80: 114.80
A81: стр 144 табл.6 /2012 Москва Дели Плюс | B81: Хлеб Сельский | F81: 50 | G81: 3.30 | H81: 0.60 | I81: 19.80 | J81: 99.00
A82: стр 134 табл.6 /2012 Москва Дели Плюс | B82: Хлеб Белый | F82: 50 | G82: 3.80 | H82: 0.40 | I82: 24.60 | J82: 117.50
B83: Итого: | F83: 906 | G83: =SUM(G76:G82) -> 28.23 | H83: =SUM(H76:H82) -> 26.83 | I83: 115.38 | J83: 813.61
B85: Полдник
A86: СБ "Партнер" №184/ 2010 г. | B86: Плюшка "Новомосковская" | F86: 50 | G86: 3.20 | H86: 3.10 | I86: 24.00 | J86: 136.00
A87: № 389 /СБ Москва Дели Плюс 2017 | B87: Нектар плодовый (разливной) | F87: 200 | G87: 1.00 | H87: 0.20 | I87: 20.20 | J87: 86.60
B88: Итого: | F88: 250 | G88: =SUM(G86:G87) -> 4.20 | H88: =SUM(H86:H87) -> 3.30 | I88: 44.20 | J88: 222.60
B90: ВСЕГО: | F90: =F73+F83+F88 -> 1641 | G90: =G73+G83+G88 -> 60.43 | H90: =H73+H83+H88 -> 61.76 | I90: 203.92 | J90: 1611.32
B93: 4 день
B94: Наименование блюд | F94: Выход | G94: Белки | H94: Жиры | I94: Угл-ды | J94: Ккал
B95: Завтрак
A96: стр 186 табл. 9 /2012 Москва Дели Плюс | B96: Фрукты (бананы, яблоки, апельсины, мандарины) | F96: 200 | G96: 3.00 | H96: 1.00 | I96: 42.00 | J96: 192.00
A97: № 15/ СБ Москва Дели Плюс 2017 | B97: Сыр (порциями) | F97: 15 | G97: 3.95 | H97: 3.99 | J97: 51.50
A98: ТТК 656 Акт проработки от 28.04.2020 | B98: Блины с абрикосовой начинкой со сгущенным молоком | F98: 195/10 | G98: 7.47 | H98: 8.358 | I98: 45.3 | J98: 289.5
A99: №379 /СБ Москва Дели Плюс 2017 | B99: Кофейный напиток с молоком | F99: 200 | G99: 3.17 | H99: 2.68 | I99: 15.94 | J99: 100.60
A100: стр 134 табл.6 /2012 Москва Дели Плюс | B100: Батон высший сорт | F100: 50 | G100: 3.75 | H100: 1.45 | I100: 25.66 | J100: 131.00
B101: Итого: | F101: 670 | G101: =SUM(G96:G100) -> 21.34 | H101: =SUM(H96:H100) -> 17.48 | I101: 128.90 | J101: 764.60
B104: Обед
A105: №113 /СБ Москва Дели Плюс 2017 | B105: Суп - лапша домашняя на курином бульоне из отварного мяса птицы | F105: 250 | G105: 2.57 | H105: 5.54 | I105: 11.62 | J105: 115.75
A107: №292 /СБ Москва Дели Плюс 2017 | B107: Птица тушеная с овощами | F107: 50/50 | G107: 8.70 | H107: 7.70 | I107: 8.60 | J107: 138.70
A108: №171 /СБ Москва Дели Плюс 2017 | B108: Каша гречневая рассыпчатая | F108: 180 | G108: 10.52 | H108: 2.76 | I108: 47.68 | J108: 296.40
A109: №10, СБ 2016 | B109: Зеленый горошек к/с (доп.гарнир) | F109: 45 | G109: 1.34 | H109: 2.34 | I109: 2.82 | J109: 37.62
A110: № 389 /СБ Москва Дели Плюс 2017 | B110: Нектар плодовый (разливной) | F110: 200 | G110: 1.00 | H110: 0.20 | I110: 20.20 | J110: 86.60
A111: стр 144 табл.6 /2012 Москва Дели Плюс | B111: Хлеб Сельский | F111: 50 | G111: 3.30 | H111: 0.60 | I111: 19.80 | J111: 99.00
A112: стр 134 табл.6 /2012 Москва Дели Плюс | B112: Хлеб Белый | F112: 50 | G112: 3.80 | H112: 0.40 | I112: 24.60 | J112: 117.50
B113: Итого: | F113: 875 | G113: =SUM(G105:G112) -> 31.23 | H113: =SUM(H105:H112) -> 19.54 | I113: 135.32 | J113: 891.57
B115: Полдник
A116: №424/СБ Москва Дели Плюс 2017 | B116: Булочка "Домашняя" | F116: 50 | G116: 3.64 | H116: 6.26 | I116: 21.96 | J116: 159.00
A117: №386 Сб 2017 Москва | B117: Кефир 2,5% | F117: 200 | G117: 5.80 | H117: 5.00 | I117: 8.00 | J117: 100.00
B118: Итого: | F118: 250 | G118: =SUM(G116:G117) -> 9.44 | H118: =SUM(H116:H117) -> 11.26 | I118: 29.96 | J118: 259.00
B120: ВСЕГО: | F120: =F101+F113+F118 -> 1795 | G120: =G101+G113+G118 -> 62.01 | H120: =H101+H113+H118 -> 48.28 | I120: 294.18 | J120: 1915.17
B123: 5 день
B124: Наименование блюд | F124: Выход | G124: Белки | H124: Жиры | I124: Угл-ды | J124: Ккал
B125: Завтрак
A126: стр 186 табл. 9 /2012 Москва Дели Плюс | B126: Фрукты (бананы, яблоки, апельсины, мандарины) | F126: 200 | G126: 1.60 | H126: 0.40 | I126: 15.00 | J126: 76.00
A127: № 14 /СБ Москва Дели Плюс 2017 | B127: Масло сливочное (порциями) | F127: 10 | G127: 0.08 | H127: 7.25 | I127: 0.13 | J127: 66.00
A128: №175 / СБ Москва Дели Плюс 2017 | B128: Каша "Дружба" молочная с маслом сливочным | F128: 200/5 | G128: 6.04 | H128: 7.56 | I128: 33.42 | J128: 227.00
A129: № 378/ СБ Москва Дели Плюс 2017 | B129: Чай с молоком ,с сахаром | F129: 150/50/15 | G129: 1.52 | H129: 1.35 | I129: 15.90 | J129: 81.00
A130: стр 134 табл.6 /2012 Москва Дели Плюс | B130: Батон высший сорт | F130: 50 | G130: 3.75 | H130: 1.45 | I130: 25.66 | J130: 131.00
B131: Итого: | F131: 680 | G131: =SUM(G126:G130) -> 12.99 | H131: =SUM(H126:H130) -> 18.01 | I131: 90.11 | J131: 581.00
B133: Обед
A134: №52 /СБ Москва Дели Плюс 2017 | B134: Салат из отварной свеклы с маслом растительным | F134: 100/5 | G134: 1.41 | H134: 6.01 | I134: 8.26 | J134: 92.80
A135: №104 /СБ Москва Дели Плюс 2017, №105 /СБ Москва Дели Плюс 2017 | B135: Суп картофельный с мясными фрикадельками | F135: 250/11 | G135: 4.39 | H135: 4.07 | I135: 15.47 | J135: 127.50
A136: №294 СБ Москва Дели Плюс 2016 | B136: Бефстроганов из отварной говядины | F136: 60/60 | G136: 17.32 | H136: 14.70 | I136: 4.54 | J136: 217.20
A137: №203/СБ Москва Дели Плюс 2017 | B137: Макаронные изделия отварные | F137: 180 | G137: 6.83 | H137: 0.80 | I137: 38.30 | J137: 187.56
A138: № 389 /СБ Москва Дели Плюс 2017 | B138: Нектар плодовый (разливной) | F138: 200 | G138: 1.00 | H138: 0.20 | I138: 20.20 | J138: 86.60
A139: стр 144 табл.6 /2012 Москва Дели Плюс | B139: Хлеб Сельский | F139: 50 | G139: 3.30 | H139: 0.60 | I139: 19.80 | J139: 99.00
A140: стр 134 табл.6 /2012 Москва Дели Плюс | B140: Хлеб Белый | F140: 50 | G140: 3.80 | H140: 0.40 | I140: 24.60 | J140: 117.50
B141: Итого: | F141: 961 | G141: =SUM(G134:G140) -> 38.05 | H141: =SUM(H134:H140) -> 26.78 | I141: 131.17 | J141: 928.16
B143: Полдник
A144: №410 /СБ Москва Дели Плюс 2017 | B144: Ватрушка с повидлом | F144: 75 | G144: 4.20 | H144: 1.70 | I144: 51.30 | J144: 224.00
A145: №386,СБ 2017 Москва | B145: Катык 2,5% | F145: 200 | G145: 5.22 | H145: 4.50 | I145: 7.56 | J145: 91.80
B146: Итого: | F146: 275 | G146: =SUM(G144:G145) -> 9.42 | H146: =SUM(H144:H145) -> 6.20 | I146: 58.86 | J146: 315.80
B148: ВСЕГО: | F148: =F131+F141+F146 -> 1916 | G148: =G131+G141+G146 -> 60.46 | H148: =H131+H141+H146 -> 50.99 | I148: 280.14 | J148: 1824.96
B150: Всего за 5 дней | F150: =F34+F63+F90+F120+F148 -> 8868.00 | G150: =G34+G63+G90+G120+G148 -> 322.49 | H150: =H34+H63+H90+H120+H148 -> 288.59 | I150: =I34+I63+I90+I120+I148 -> 1327.91 | J150: =J34+J63+J90+J120+J148 -> 9298.82
B151: Итого в среднем за 1 день на 1 учащегося | F151: =F150/5 -> 1773.60 | G151: =G150/5 -> 64.50 | H151: =H150/5 -> 57.72 | I151: 265.58 | J151: 1859.76
A153: Р.S. | B153: Сборник рецептур на продукцию для обучающихся во всех образовательных учреждениях.
B154: Москва Дели Плюс,2017
B155: Сборник рецептур на продукцию для обучающихся во всех образовательных учреждениях.
B156: Москва Дели Плюс,2016
B157: Химический состав и калорийность Российских продуктов питания,Москва, Дели Плюс 2012
